bitfinex/quotes_BTCUSD_20251214
["timestamp","ask_amount","ask_price","bid_price","bid_amount"]
[1765742111497,4.44398138,88601.0,88600.0,0.25980363]
[1765742111640,4.44398138,88601.0,88600.0,0.28233363]
[1765742111857,4.44398138,88601.0,88600.0,0.31621683]
[1765742112513,4.44298138,88601.0,88600.0,0.31621683]
[1765742112823,4.44098138,88601.0,88600.0,0.31721683]
[1765742125719,4.44098138,88601.0,88600.0,0.42961683]
[1765742127735,4.44098138,88601.0,88600.0,0.31721683]
[1765742130642,4.43598138,88601.0,88600.0,0.31721683]
[1765742140383,4.43598138,88601.0,88600.0,0.37362184]
[1765742141871,4.43598138,88601.0,88600.0,0.31721683]
[1765742147306,4.43598138,88601.0,88600.0,0.32828683]
[1765742162986,4.43598138,88601.0,88600.0,0.44068683]
[1765742164157,4.43598138,88601.0,88600.0,0.3298997]
[1765742164394,4.43598138,88601.0,88600.0,0.4422997]
[1765742172703,4.43598138,88601.0,88600.0,0.49231809]
[1765742172909,4.43598138,88601.0,88600.0,0.78301809]
[1765742173273,4.43598138,88601.0,88600.0,0.86390055]
[1765742173489,4.43598138,88601.0,88600.0,0.78301809]
[1765742183531,4.43598138,88601.0,88600.0,2.78301809]
[1765742184919,4.43598138,88601.0,88600.0,2.78501809]
[1765742185123,4.43598138,88601.0,88600.0,2.78901809]
[1765742192653,4.41031151,88601.0,88600.0,2.89602076]
[1765742192867,4.25799313,88601.0,88600.0,2.79490686]
[1765742202991,4.23232561,88601.0,88600.0,2.89623349]
[1765742209814,4.23232561,88601.0,88600.0,2.79490686]
[1765742210395,3.7009833,88601.0,88600.0,2.79490686]
[1765742217078,3.04667598,88601.0,88600.0,2.79490686]
[1765742218018,3.04667598,88601.0,88600.0,2.79190686]
[1765742218583,3.04667598,88601.0,88600.0,2.79590686]
[1765742219354,3.04667598,88601.0,88600.0,2.79990686]
[1765742219933,3.04667598,88601.0,88600.0,2.79590686]
[1765742220303,3.04667598,88601.0,88600.0,3.04330686]
[1765742220700,3.04667598,88601.0,88600.0,3.03530686]
[1765742221104,3.04667598,88601.0,88600.0,3.04030686]
[1765742221802,3.04767598,88601.0,88600.0,3.04730686]
[1765742222204,3.04667598,88601.0,88600.0,3.04030686]
[1765742222470,3.04667598,88601.0,88600.0,3.03530686]
[1765742222642,3.04767598,88601.0,88600.0,3.04230686]
[1765742222851,3.04767598,88601.0,88600.0,3.04730686]
[1765742223057,3.04667598,88601.0,88600.0,3.04030686]
[1765742223367,3.04767598,88601.0,88600.0,3.04630686]
[1765742226336,3.04767598,88601.0,88600.0,2.79890686]
[1765742234359,3.04767598,88601.0,88600.0,1.96634486]
[1765742235311,3.04667598,88601.0,88600.0,1.96034486]
[1765742236120,3.04667598,88601.0,88600.0,1.96534486]
[1765742236654,3.04667598,88601.0,88600.0,1.96034486]
[1765742236810,3.04667598,88601.0,88600.0,1.96334486]
[1765742257020,3.04667598,88601.0,88600.0,0.55510147]
[1765742257252,3.04667598,88601.0,88600.0,0.44768683]
[1765742257603,3.04667598,88601.0,88600.0,0.78840522]
[1765742258151,3.04667598,88601.0,88600.0,1.04439422]
[1765742258686,3.04667598,88601.0,88600.0,1.04139422]
[1765742259107,3.04667598,88601.0,88600.0,1.04239422]
[1765742259314,3.04667598,88601.0,88600.0,1.04539422]
[1765742259725,3.04667598,88601.0,88600.0,0.44068683]
[1765742259895,3.04667598,88601.0,88600.0,0.30575683]
[1765742260100,3.04667598,88601.0,88600.0,0.30875683]
[1765742260521,3.04667598,88601.0,88600.0,0.30575683]
[1765742260899,3.04667598,88601.0,88600.0,0.30675683]
[1765742261730,3.04667598,88601.0,88600.0,0.30575683]
[1765742262653,3.04667598,88601.0,88600.0,0.28948683]
[1765742263018,3.04667598,88601.0,88600.0,0.30566683]
[1765742263213,3.04667598,88601.0,88600.0,0.33117683]
[1765742267922,3.04667598,88601.0,88600.0,0.30566683]
[1765742268111,3.04667598,88601.0,88600.0,0.27841683]
[1765742268522,3.04667598,88601.0,88600.0,0.39081683]
[1765742273239,3.04667598,88601.0,88600.0,0.27841683]
[1765742273415,3.04667598,88601.0,88600.0,0.0526832]
[1765742273642,3.06304598,88601.0,88600.0,0.0526832]
[1765742274068,3.04667598,88601.0,88600.0,0.0526832]
[1765742276247,3.27240706,88601.0,88600.0,0.0526832]
[1765742276785,3.04667598,88601.0,88600.0,0.0526832]
[1765742277561,3.27240706,88601.0,88600.0,0.0526832]
[1765742278015,3.04667598,88601.0,88600.0,0.0526832]
[1765742279199,3.07160598,88601.0,88600.0,0.0526832]
[1765742279384,3.04667598,88601.0,88600.0,0.0526832]
[1765742279747,3.08758598,88601.0,88600.0,0.0188]
[1765742279901,3.06265598,88601.0,88600.0,0.0188]
[1765742280087,3.04667598,88601.0,88600.0,0.0188]
[1765742281302,3.08758598,88601.0,88600.0,0.0188]
[1765742281687,3.04667598,88601.0,88600.0,0.0188]
[1765742286946,3.07160598,88601.0,88600.0,0.0188]
[1765742287146,3.08758598,88601.0,88600.0,0.0188]
[1765742290222,3.06265598,88601.0,88600.0,0.0188]
[1765742290431,3.04667598,88601.0,88600.0,0.0188]
[1765742298335,3.27240706,88601.0,88600.0,0.0188]
[1765742299928,3.04667598,88601.0,88600.0,0.0188]
[1765742315040,3.27240706,88601.0,88600.0,0.0188]
[1765742316656,3.32473706,88601.0,88600.0,0.0188]
[1765742317058,3.09900598,88601.0,88600.0,0.0188]
[1765742317264,3.04667598,88601.0,88600.0,0.0188]
[1765742320510,3.04343437,88601.0,88600.0,0.0188]
[1765742324748,3.08414437,88601.0,88600.0,0.0188]
[1765742333583,3.04343437,88601.0,88600.0,0.0188]
[1765742334512,3.04343437,88601.0,88600.0,0.06688]
[1765742334791,3.04343437,88601.0,88600.0,0.17928]
[1765742335341,3.04343437,88601.0,88600.0,0.15455]
[1765742335582,3.04343437,88601.0,88600.0,0.04215]
[1765742337699,3.04343437,88601.0,88600.0,0.0651]
[1765742338002,3.04343437,88601.0,88600.0,0.1775]
[1765742338216,3.04343437,88601.0,88600.0,0.0651]
[1765742338413,3.04343437,88601.0,88600.0,0.1775]
[1765742338610,3.04343437,88601.0,88600.0,0.21299212]
[1765742338815,3.04343437,88601.0,88600.0,0.26301051]
[1765742339568,3.04343437,88601.0,88600.0,0.15061051]
[1765742341414,3.04343437,88601.0,88600.0,0.26301051]
[1765742342856,3.04343437,88601.0,88600.0,1.10121851]
[1765742343502,3.04343437,88601.0,88600.0,1.07243567]
[1765742343503,2.41272311,88601.0,88600.0,1.07243567]
[1765742343716,2.08303035,88601.0,88600.0,1.27228898]
[1765742343915,1.78523114,88601.0,88600.0,1.27228898]
[1765742344067,1.69872532,88601.0,88600.0,1.27128898]
[1765742344425,1.66487399,88601.0,88600.0,1.27328898]
[1765742344568,0.0004,88652.0,88651.0,0.1124]
[1765742344771,0.0004,88652.0,88651.0,0.1302]
[1765742344972,0.0004,88652.0,88651.0,0.13181287]
[1765742345170,0.0004,88652.0,88651.0,0.15161287]
[1765742345485,0.0004,88652.0,88651.0,0.19023287]
[1765742346070,0.0004,88652.0,88651.0,0.19123287]
[1765742346476,0.0014,88652.0,88651.0,0.19123287]
[1765742349462,0.0014,88652.0,88651.0,0.53195126]
[1765742349694,0.0014,88652.0,88651.0,0.01448287]
[1765742349868,0.26702122,88652.0,88651.0,0.001]
[1765742350252,0.0004,88652.0,88650.0,0.00767]
[1765742350446,0.01128031,88650.0,88644.0,0.00793]
[1765742350788,0.01128031,88650.0,88642.0,0.02314967]
[1765742350789,0.02315095,88645.0,88642.0,0.02314967]
[1765742351638,0.01187,88645.0,88642.0,0.02314967]
[1765742351856,0.01187,88645.0,88642.0,0.034431]
[1765742352091,0.0004,88652.0,88644.0,0.02334]
[1765742352295,0.0024,88652.0,88651.0,0.02308]
[1765742352522,0.0004,88652.0,88651.0,0.15328]
[1765742352934,0.0004,88652.0,88651.0,0.04088]
[1765742353551,0.0024,88652.0,88651.0,0.02521]
[1765742353753,0.0014,88652.0,88651.0,0.02521]
[1765742354724,0.0004,88652.0,88651.0,0.02521]
[1765742355826,0.0024,88652.0,88651.0,0.02521]
[1765742359816,0.25163122,88652.0,88651.0,0.0178]
[1765742360019,0.0024,88652.0,88651.0,0.0178]
[1765742361184,0.02603,88652.0,88651.0,0.0178]
[1765742361381,0.0024,88652.0,88651.0,0.0178]
[1765742363068,0.0024,88652.0,88651.0,0.02395]
[1765742364123,0.0024,88652.0,88651.0,0.28441377]
[1765742364323,0.0024,88652.0,88651.0,0.26522377]
[1765742364618,0.0024,88652.0,88651.0,0.28416377]
[1765742364847,0.0014,88652.0,88651.0,0.24955377]
[1765742365037,0.0004,88652.0,88651.0,0.24955377]
[1765742365219,0.0004,88652.0,88651.0,0.25055377]
[1765742368151,0.0004,88652.0,88651.0,0.06133]
[1765742368351,0.0004,88652.0,88651.0,0.11296126]
[1765742368571,0.0004,88652.0,88651.0,0.22536126]
[1765742368952,0.0004,88652.0,88651.0,0.11296126]
[1765742369295,0.0004,88652.0,88651.0,0.09477126]
[1765742369496,0.0004,88652.0,88651.0,0.22487126]
[1765742373447,0.0004,88652.0,88651.0,0.18898126]
[1765742374106,0.0004,88652.0,88651.0,0.07658126]
[1765742377323,0.0004,88652.0,88651.0,0.09258126]
[1765742377520,0.0004,88652.0,88651.0,0.10834126]
[1765742379742,0.0004,88652.0,88651.0,0.09258126]
[1765742386735,0.0004,88652.0,88651.0,0.03403287]
[1765742387916,0.0014,88652.0,88651.0,0.03403287]
[1765742388579,0.0014,88652.0,88651.0,0.01941287]
[1765742388756,0.0024,88652.0,88651.0,0.01941287]
[1765742390937,0.0024,88652.0,88651.0,0.24501664]
[1765742396551,0.0024,88652.0,88651.0,0.35741664]
[1765742397425,0.0024,88652.0,88651.0,0.24501664]
[1765742397987,0.0024,88652.0,88651.0,0.01941287]
[1765742399108,0.0024,88652.0,88651.0,0.0178]
[1765742399290,0.08381,88652.0,88651.0,0.0178]
[1765742402829,0.0353,88652.0,88651.0,0.0178]
[1765742403457,0.08381,88652.0,88651.0,0.0178]
[1765742404634,0.0024,88652.0,88651.0,0.0178]
[1765742404833,0.0024,88652.0,88651.0,0.14924]
[1765742405067,0.0024,88652.0,88651.0,0.15085287]
[1765742408330,0.0024,88652.0,88651.0,0.44155287]
[1765742408696,0.0024,88652.0,88651.0,0.49157126]
[1765742409377,0.0024,88652.0,88651.0,0.48718556]
[1765742409786,0.0014,88652.0,88651.0,0.48718556]
[1765742410695,0.0004,88652.0,88651.0,0.48718556]
[1765742411042,0.0004,88652.0,88651.0,0.48818556]
[1765742412683,0.0004,88652.0,88651.0,0.48618556]
[1765742413102,0.0004,88652.0,88651.0,0.37378556]
[1765742413303,0.0004,88652.0,88651.0,0.48618556]
[1765742414564,0.0004,88652.0,88651.0,0.37378556]
[1765742414732,0.0004,88652.0,88651.0,0.47666556]
[1765742415807,0.0004,88652.0,88651.0,0.48393556]
[1765742416861,0.0004,88652.0,88651.0,0.51779329]
[1765742420248,0.0004,88652.0,88651.0,2.51779329]
[1765742421268,0.0004,88652.0,88651.0,2.51679329]
[1765742421427,0.0004,88652.0,88651.0,2.51879329]
[1765742422207,0.0004,88652.0,88651.0,2.55197995]
[1765742422564,0.0004,88665.0,88664.0,2.45311839]
[1765742422801,0.0004,88665.0,88664.0,2.47830126]
[1765742422998,0.0004,88665.0,88664.0,2.48407126]
[1765742423242,0.0004,88665.0,88664.0,2.48858393]
[1765742423916,0.0004,88665.0,88664.0,2.49458393]
[1765742424155,0.0004,88665.0,88664.0,2.50058393]
[1765742424942,0.0004,88665.0,88664.0,1.25006793]
[1765742425106,0.0004,88665.0,88664.0,1.19739293]
[1765742425514,0.0004,88665.0,88664.0,1.21411105]
[1765742425902,0.0004,88665.0,88664.0,1.20811105]
[1765742426071,0.0004,88665.0,88664.0,1.20611105]
[1765742426250,0.0004,88665.0,88664.0,1.21011105]
[1765742429678,0.0004,88665.0,88664.0,1.14912993]
[1765742431541,0.0004,88665.0,88664.0,1.13132993]
[1765742431741,0.0004,88665.0,88664.0,0.77754893]
[1765742431939,0.0004,88665.0,88664.0,0.68220093]
[1765742432832,0.0004,88665.0,88664.0,0.37841393]
[1765742433111,0.0004,88665.0,88664.0,0.08771393]
[1765742433272,0.0004,88665.0,88664.0,0.37841393]
[1765742433667,0.0004,88665.0,88664.0,0.37441393]
[1765742433972,0.0004,88665.0,88664.0,0.37241393]
[1765742434166,0.0004,88665.0,88664.0,0.36864393]
[1765742434993,0.07861,88665.0,88664.0,0.31701267]
[1765742435328,0.0004,88665.0,88664.0,0.31701267]
[1765742435904,0.0004,88665.0,88664.0,0.31501267]
[1765742436105,0.0004,88665.0,88664.0,0.31401267]
[1765742439098,0.06979,88665.0,88664.0,0.31401267]
[1765742439322,0.10067,88665.0,88664.0,0.31401267]
[1765742439724,0.02246,88665.0,88664.0,0.31401267]
[1765742439967,0.0004,88665.0,88664.0,0.31401267]
[1765742441344,0.03128,88665.0,88664.0,0.02331267]
[1765742441615,0.07861,88665.0,88664.0,0.31401267]
[1765742442367,0.07861,88665.0,88664.0,0.00551267]
[1765742442972,0.0004,88665.0,88664.0,0.00551267]
[1765742443762,0.22596814,88665.0,88664.0,0.00551267]
[1765742444005,0.30417814,88665.0,88664.0,0.00551267]
[1765742445016,0.03128,88665.0,88664.0,0.00551267]
[1765742445362,0.07861,88665.0,88664.0,0.00551267]
[1765742457241,0.0004,88665.0,88664.0,0.40861267]
[1765742460620,0.0004,88665.0,88664.0,0.46024393]
[1765742463546,0.01127764,88671.0,88668.0,0.01127802]
[1765742463963,0.00566477,88672.0,88669.0,0.01127789]
[1765742464199,0.01127726,88674.0,88670.0,0.01127777]
[1765742464822,0.01127726,88674.0,88671.0,0.03385349]
[1765742464956,0.01127726,88674.0,88672.0,0.0178]
[1765742465573,0.001,88674.0,88672.0,0.02907751]
[1765742465872,0.0004,88676.0,88673.0,0.23682263]
[1765742466059,0.00078607,88676.0,88673.0,0.23682263]
[1765742466303,0.001,88674.0,88673.0,0.23682263]
[1765742467827,0.00178607,88676.0,88673.0,0.23682263]
[1765742467961,0.00078607,88676.0,88674.0,0.22554341]
[1765742468668,0.00078607,88676.0,88675.0,0.03385349]
[1765742469048,0.00178607,88676.0,88675.0,0.03385349]
[1765742469250,0.07276607,88676.0,88675.0,0.03385349]
[1765742470120,0.07376607,88676.0,88675.0,0.03385349]
[1765742470475,0.07276607,88676.0,88675.0,0.03385349]
[1765742470673,0.07176607,88676.0,88675.0,0.03385349]
[1765742471041,0.07476607,88676.0,88675.0,0.03385349]
[1765742475903,0.01127777,88670.0,88667.0,0.0178]
[1765742476105,0.11234756,88669.0,88667.0,0.0178]
[1765742476313,0.09232,88668.0,88667.0,0.0178]
[1765742476720,0.09232,88668.0,88667.0,0.0356]
[1765742477770,0.09232,88668.0,88667.0,0.0178]
[1765742480444,0.22557578,88662.0,88661.0,0.03385639]
[1765742480643,0.22557578,88662.0,88655.0,0.01127967]
[1765742480644,0.28619456,88662.0,88659.0,0.0178]
[1765742480967,0.06061878,88662.0,88659.0,0.02907917]
[1765742481171,0.10359878,88662.0,88659.0,0.02907917]
[1765742481581,0.10359878,88662.0,88661.0,0.001]
[1765742481730,0.09232,88662.0,88659.0,0.02907917]
[1765742481940,0.09232,88662.0,88660.0,0.22557883]
[1765742482553,0.09232,88662.0,88661.0,0.001]
[1765742482930,0.09232,88662.0,88660.0,0.22557883]
[1765742483133,0.09432,88662.0,88660.0,0.22557883]
[1765742483787,0.09632,88662.0,88660.0,0.22557883]
[1765742483985,0.09432,88662.0,88660.0,0.22557883]
[1765742484449,0.09632,88662.0,88660.0,0.22557883]
[1765742486206,0.09632,88662.0,88659.0,0.25466063]
[1765742487228,0.09232,88662.0,88659.0,0.25466063]
[1765742487449,0.041,88661.0,88659.0,0.0178]
[1765742488314,0.02751,88660.0,88659.0,0.0178]
[1765742488718,0.06851,88660.0,88659.0,0.0178]
[1765742489269,0.29409087,88660.0,88659.0,0.0178]
[1765742489475,0.06851,88660.0,88659.0,0.0178]
[1765742490125,0.07051,88660.0,88659.0,0.0178]
[1765742490321,0.03151,88660.0,88659.0,0.0178]
[1765742491483,0.07251,88660.0,88659.0,0.0178]
[1765742493140,0.22559421,88655.0,88652.0,0.03386002]
[1765742493346,0.22559421,88655.0,88648.0,0.2907]
[1765742493347,0.23688582,88651.0,88648.0,0.2907]
[1765742493602,0.23688582,88651.0,88649.0,0.0178]
[1765742493802,0.23688582,88651.0,88642.0,0.01128133]
[1765742493803,0.23688582,88651.0,88632.0,0.0112826]
[1765742493804,0.01128197,88637.0,88632.0,0.0112826]
[1765742494008,0.01128197,88637.0,88630.0,0.23693945]
[1765742494009,0.02005,88635.0,88634.0,0.0178]
[1765742495794,0.02005,88639.0,88637.0,0.2256394]
[1765742496035,0.02016571,88639.0,88637.0,0.2256394]
[1765742496987,0.02116571,88639.0,88637.0,0.2256394]
[1765742500831,0.00111571,88639.0,88637.0,0.2256394]
[1765742501279,0.04211571,88639.0,88637.0,0.2256394]
[1765742501432,0.00111571,88639.0,88638.0,0.05001839]
[1765742501633,0.00111571,88639.0,88638.0,0.16403126]
[1765742501839,0.00111571,88639.0,88638.0,0.19789594]
[1765742502242,0.00011571,88639.0,88638.0,0.19789594]
[1765742502791,0.00011571,88639.0,88638.0,0.20189594]
[1765742502991,0.00011571,88639.0,88638.0,0.19989594]
[1765742504020,0.00011571,88639.0,88638.0,0.08749594]
[1765742504690,0.00011571,88639.0,88638.0,0.08949594]
[1765742505189,0.00011571,88639.0,88638.0,0.08749594]
[1765742505402,0.00011571,88639.0,88638.0,0.08849594]
[1765742505566,0.00011571,88639.0,88638.0,0.08649594]
[1765742505773,0.00011571,88639.0,88638.0,0.19989594]
[1765742506102,0.00011571,88639.0,88638.0,2.49059594]
[1765742507375,0.00011571,88639.0,88638.0,2.52322148]
[1765742507730,0.00011571,88639.0,88638.0,2.55297485]
[1765742507856,1e-08,88639.0,88638.0,2.55697485]
[1765742508057,0.0004,88676.0,88675.0,0.2755611]
[1765742508393,0.00078672,88676.0,88675.0,0.40737397]
[1765742508796,0.00078672,88676.0,88675.0,0.73192242]
[1765742508977,0.00078672,88676.0,88675.0,1.56085042]
[1765742509177,0.00078672,88676.0,88675.0,0.60172242]
[1765742509376,0.00078672,88676.0,88675.0,0.62052242]
[1765742509602,0.00078672,88676.0,88675.0,0.62152242]
[1765742509802,0.00078672,88676.0,88675.0,0.62052242]
[1765742509979,0.00078672,88676.0,88675.0,0.62152242]
[1765742510540,0.00078672,88676.0,88675.0,0.62052242]
[1765742510767,0.00078672,88676.0,88675.0,0.61952242]
[1765742510952,0.00078672,88676.0,88675.0,0.39236684]
[1765742511241,0.00078672,88676.0,88675.0,0.61990955]
[1765742511659,0.00078672,88676.0,88675.0,0.73030955]
[1765742511861,0.00078672,88676.0,88675.0,0.39236684]
[1765742512156,0.00078672,88676.0,88675.0,0.61990955]
[1765742512350,0.00078672,88676.0,88675.0,0.73192242]
[1765742512775,0.00078672,88676.0,88675.0,0.73292242]
[1765742512927,0.00078672,88676.0,88675.0,0.73492242]
[1765742513110,0.00078672,88676.0,88675.0,0.73292242]
[1765742513514,0.00078672,88676.0,88675.0,0.73392242]
[1765742513899,0.00078672,88676.0,88675.0,0.73292242]
[1765742514348,0.00078672,88676.0,88675.0,0.73492242]
[1765742514588,0.00078672,88676.0,88675.0,1.21237743]
[1765742514788,0.00078672,88676.0,88675.0,1.21037743]
[1765742514985,0.00078672,88676.0,88675.0,1.20937743]
[1765742515223,0.00078672,88676.0,88675.0,1.24400297]
[1765742515361,0.00078672,88676.0,88675.0,1.30009796]
[1765742515699,1e-08,88676.0,88675.0,1.34765595]
[1765742516006,1e-08,88676.0,88675.0,1.34565595]
[1765742516225,1e-08,88676.0,88675.0,1.28253869]
[1765742516410,1e-08,88676.0,88675.0,1.28853869]
[1765742516609,1e-08,88676.0,88675.0,1.27073869]
[1765742516786,1e-08,88676.0,88675.0,1.28253869]
[1765742517202,1e-08,88676.0,88675.0,1.28753869]
[1765742517836,1e-08,88676.0,88675.0,1.28253869]
[1765742518051,0.00100001,88676.0,88675.0,1.28953869]
[1765742518249,0.00200001,88676.0,88675.0,1.29853869]
[1765742518456,0.00100001,88676.0,88675.0,1.27247242]
[1765742518993,0.00100001,88676.0,88675.0,1.27947242]
[1765742521538,0.00100001,88676.0,88675.0,1.26167242]
[1765742521742,0.00100001,88676.0,88675.0,0.55709742]
[1765742521961,0.00100001,88676.0,88675.0,0.74592242]
[1765742522562,0.00100001,88676.0,88675.0,0.73892242]
[1765742522757,0.00100001,88676.0,88675.0,0.85049742]
[1765742523208,0.00100001,88676.0,88675.0,0.83269742]
[1765742523548,0.00100001,88676.0,88675.0,0.34934845]
[1765742523767,1e-08,88676.0,88675.0,0.05164845]
[1765742523976,0.08120001,88676.0,88675.0,0.0178]
[1765742524517,0.08120001,88676.0,88675.0,0.0188]
[1765742524713,0.08120001,88676.0,88675.0,0.0178]
[1765742524925,0.08120001,88676.0,88675.0,0.0188]
[1765742526423,0.08120001,88676.0,88675.0,0.0178]
[1765742526832,1e-08,88676.0,88675.0,0.0178]
[1765742528386,1e-08,88676.0,88675.0,0.06781839]
[1765742528551,1e-08,88676.0,88675.0,0.18021839]
[1765742530697,1e-08,88676.0,88675.0,0.18221839]
[1765742530902,1e-08,88676.0,88675.0,0.06981839]
[1765742531100,1e-08,88676.0,88675.0,0.2953611]
[1765742531299,1e-08,88676.0,88675.0,0.2963611]
[1765742531640,1e-08,88676.0,88675.0,0.4087611]
[1765742532175,1e-08,88676.0,88675.0,0.4077611]
[1765742532593,1e-08,88676.0,88675.0,0.4067611]
[1765742533650,1e-08,88676.0,88675.0,0.4180367]
[1765742533892,1e-08,88676.0,88675.0,0.4190367]
[1765742534155,1e-08,88676.0,88675.0,2.81213317]
[1765742534407,0.0004,88690.0,88689.0,2.67862549]
[1765742534647,0.0004,88708.0,88700.0,2.45311839]
[1765742534860,0.0004,88708.0,88702.0,2.67859244]
[1765742535070,0.0004,88708.0,88702.0,2.68020531]
[1765742537190,0.0004,88708.0,88702.0,2.68620531]
[1765742537403,0.0004,88708.0,88702.0,2.69220531]
[1765742537404,0.0014,88703.0,88702.0,2.69220531]
[1765742541124,0.0014,88703.0,88702.0,2.37315292]
[1765742541543,0.0014,88703.0,88702.0,2.42317131]
[1765742550497,0.0014,88703.0,88702.0,1.36158131]
[1765742550774,0.0014,88703.0,88702.0,0.78772092]
[1765742550978,0.0014,88703.0,88702.0,1.12843931]
[1765742551537,0.0014,88703.0,88702.0,1.12243931]
[1765742551734,0.0004,88703.0,88702.0,1.11843931]
[1765742552155,0.0004,88703.0,88702.0,1.12243931]
[1765742552687,0.0004,88703.0,88702.0,1.11843931]
[1765742552919,0.0004,88703.0,88702.0,1.12043931]
[1765742553047,0.0004,88703.0,88702.0,1.11843931]
[1765742553246,0.0014,88703.0,88702.0,1.11843931]
[1765742554161,0.0014,88703.0,88702.0,1.11682644]
[1765742556298,0.0014,88703.0,88702.0,1.11843931]
[1765742560754,0.0004,88703.0,88702.0,1.11843931]
[1765742560949,0.0004,88703.0,88702.0,1.11943931]
[1765742561105,0.0004,88703.0,88702.0,1.11743931]
[1765742561308,0.0004,88703.0,88702.0,1.12043931]
[1765742569365,1e-08,88707.0,88706.0,0.56618228]
[1765742569573,1e-08,88707.0,88706.0,2.84627631]
[1765742570044,1e-08,88707.0,88706.0,2.85078656]
[1765742570237,1e-08,88707.0,88706.0,2.749549]
[1765742570445,1e-08,88707.0,88706.0,2.85045696]
[1765742570817,1e-08,88707.0,88706.0,2.85145696]
[1765742571428,1e-08,88707.0,88706.0,2.85445696]
[1765742572535,1e-08,88707.0,88706.0,2.753549]
[1765742573431,1e-08,88707.0,88706.0,2.85445696]
[1765742573611,1e-08,88707.0,88706.0,2.753549]
[1765742574625,1e-08,88707.0,88706.0,2.77011375]
[1765742575371,1e-08,88707.0,88706.0,2.87095086]
[1765742576291,0.21961198,88723.0,88710.0,2.67857211]
[1765742576516,0.21961198,88723.0,88710.0,2.69798498]
[1765742577595,0.21961198,88723.0,88710.0,2.69898498]
[1765742578514,0.21961198,88723.0,88710.0,2.69798498]
[1765742578792,0.21961198,88723.0,88710.0,2.70098498]
[1765742579942,0.21961198,88723.0,88710.0,2.70198498]
[1765742580280,0.21961198,88723.0,88710.0,1.18588798]
[1765742599310,0.21961198,88723.0,88710.0,1.21971837]
[1765742608548,0.00013422,88711.0,88710.0,1.21971837]
[1765742609512,0.00013422,88711.0,88710.0,1.32053385]
[1765742610209,0.21961198,88723.0,88720.0,0.6785467]
[1765742610425,0.21961198,88723.0,88720.0,2.69795957]
[1765742610426,0.00031341,88721.0,88720.0,2.69795957]
[1765742611005,0.00031341,88721.0,88720.0,2.73178355]
[1765742611300,0.00031341,88721.0,88720.0,2.81702094]
[1765742611497,0.00031341,88721.0,88720.0,2.82102094]
[1765742611931,0.00031341,88721.0,88720.0,2.82302094]
[1765742612289,0.00031341,88721.0,88720.0,2.92391566]
[1765742612842,0.00031341,88721.0,88720.0,0.84931927]
[1765742613136,0.00031341,88721.0,88720.0,0.96600955]
[1765742613328,0.00031341,88721.0,88720.0,0.67530955]
[1765742613503,0.00031341,88721.0,88720.0,0.96200955]
[1765742613903,0.00031341,88721.0,88720.0,0.96300955]
[1765742614520,0.00031341,88721.0,88720.0,0.96100955]
[1765742615329,0.00031341,88721.0,88720.0,0.84699668]
[1765742616083,0.00131341,88721.0,88720.0,0.84699668]
[1765742616285,0.00131341,88721.0,88720.0,0.84599668]
[1765742616690,0.00131341,88721.0,88720.0,0.87224668]
[1765742617148,0.00131341,88721.0,88720.0,0.75172268]
[1765742617323,0.00131341,88721.0,88720.0,0.74060268]
[1765742617520,0.00131341,88721.0,88720.0,0.61777068]
[1765742617743,0.00131341,88721.0,88720.0,0.73703568]
[1765742617978,0.00131341,88721.0,88720.0,0.61777068]
[1765742618475,0.00131341,88721.0,88720.0,0.72412268]
[1765742618676,0.00131341,88721.0,88720.0,0.72215568]
[1765742618822,0.00131341,88721.0,88720.0,0.73529768]
[1765742619228,0.00131341,88721.0,88720.0,0.61777068]
[1765742620134,0.00131341,88721.0,88720.0,0.77623268]
[1765742620427,0.00131341,88721.0,88720.0,0.61777068]
[1765742620680,0.00131341,88721.0,88720.0,0.73241468]
[1765742620898,0.00131341,88721.0,88720.0,0.75914768]
[1765742621118,0.00131341,88721.0,88720.0,0.72923868]
[1765742621333,0.00131341,88721.0,88720.0,0.61777068]
[1765742621742,0.00131341,88721.0,88720.0,0.72914568]
[1765742622041,0.00131341,88721.0,88720.0,0.74257268]
[1765742622206,0.00131341,88721.0,88720.0,0.72155868]
[1765742622407,0.00131341,88721.0,88720.0,0.61777068]
[1765742624743,0.00131341,88721.0,88720.0,0.73521468]
[1765742624909,0.00131341,88721.0,88720.0,0.61777068]
[1765742626127,0.00131341,88721.0,88720.0,1.57152968]
[1765742630570,0.00131341,88721.0,88720.0,0.99397668]
[1765742641825,0.00131341,88721.0,88720.0,0.88157668]
[1765742642022,0.00131341,88721.0,88720.0,0.61777068]
[1765742642790,0.00131341,88721.0,88720.0,0.74204068]
[1765742643000,0.00131341,88721.0,88720.0,0.61777068]
[1765742643436,0.00131341,88721.0,88720.0,0.73190368]
[1765742643640,0.00131341,88721.0,88720.0,0.61777068]
[1765742644046,0.00131341,88721.0,88720.0,0.72658668]
[1765742644249,0.00131341,88721.0,88720.0,1.60630768]
[1765742644459,0.00131341,88721.0,88720.0,1.72032055]
[1765742651573,0.00131341,88721.0,88720.0,1.20583755]
[1765742653115,0.00131341,88721.0,88720.0,1.31823755]
[1765742657974,0.00131341,88721.0,88720.0,0.05162398]
[1765742657975,0.06736341,88721.0,88720.0,0.05162398]
[1765742658211,0.06736341,88721.0,88720.0,0.27705229]
[1765742658577,0.03611341,88721.0,88720.0,0.27705229]
[1765742658783,0.02168341,88721.0,88720.0,0.03382398]
[1765742658993,0.08536807,88721.0,88687.0,0.24222109]
[1765742659202,0.01127497,88692.0,88688.0,0.0178]
[1765742659421,0.02037,88689.0,88688.0,0.0178]
[1765742659776,0.05162,88689.0,88688.0,0.0178]
[1765742660179,0.05162,88689.0,88679.0,0.0178]
[1765742660180,0.23680114,88682.0,88679.0,0.0178]
[1765742660405,0.02037,88680.0,88679.0,0.0178]
[1765742661004,0.00011333,88682.0,88680.0,0.22552999]
[1765742661225,0.00011333,88682.0,88681.0,0.11511]
[1765742663060,0.00011333,88682.0,88681.0,0.47740498]
[1765742663284,0.00311333,88682.0,88681.0,0.45993126]
[1765742663608,0.00011333,88682.0,88681.0,0.45993126]
[1765742663914,0.00111333,88682.0,88681.0,0.45993126]
[1765742667238,0.00111333,88682.0,88681.0,2.45993126]
[1765742668411,0.00111333,88682.0,88681.0,2.52477486]
[1765742669261,0.00111333,88682.0,88681.0,2.55602486]
[1765742669466,0.00011333,88682.0,88681.0,2.55602486]
[1765742669673,0.00111333,88682.0,88681.0,2.55602486]
[1765742703194,0.0003863,88682.0,88681.0,2.55602486]
[1765742708563,0.0003863,88682.0,88681.0,2.56188145]
[1765742711230,0.00013426,88682.0,88681.0,2.56188145]
[1765742713151,0.00013426,88682.0,88681.0,2.80928145]